bitfinex/quotes_SOLUSD_20241121
["timestamp","ask_amount","ask_price","bid_price","bid_amount"]
[1732200088736,38.03882283,243.28,243.19,38.03882283]
[1732200088943,38.03882283,243.36,243.04,4.109]
[1732200088944,38.03882283,243.24,243.15,38.03882283]
[1732200089124,38.03882283,243.22,243.13,54.45810883]
[1732200089320,38.03882283,243.22,243.13,38.03882283]
[1732200089529,38.03882283,243.29,243.21,38.03882283]
[1732200089744,38.03882283,243.26,243.15,38.03882283]
[1732200090047,38.03882283,243.22,243.13,38.03882283]
[1732200090250,4.1093,243.35,243.14,38.03882283]
[1732200090447,38.03882283,243.23,243.14,38.03882283]
[1732200090651,38.03882283,243.21,243.14,38.03882283]
[1732200090951,38.03882283,243.23,243.14,38.03882283]
[1732200091158,38.03882283,243.29,243.2,38.03882283]
[1732200091336,38.03882283,243.29,243.14,20.0]
[1732200091337,38.03882283,243.32,243.23,38.03882283]
[1732200091533,38.03882283,243.32,243.24,20.0]
[1732200092039,38.03882283,243.34,243.26,20.0]
[1732200092749,38.03882283,243.32,243.24,20.0]
[1732200093130,38.03882283,243.34,243.25,38.03882283]
[1732200093342,38.03882283,243.34,243.27,38.03882283]
[1732200093653,24.9994,243.44,243.33,38.03882283]
[1732200093654,38.03882283,243.42,243.33,38.03882283]
[1732200093946,0.5,243.57,243.39,38.03882283]
[1732200094143,38.03882283,243.48,243.39,38.03882283]
[1732200094545,38.03882283,243.48,243.4,20.0]
[1732200094743,7.8857,243.59,243.44,20.0]
[1732200094744,38.03882283,243.52,243.44,20.0]
[1732200095054,7.8857,243.59,243.36,38.03882283]
[1732200095055,38.03882283,243.56,243.47,38.03882283]
[1732200095234,38.03882283,243.56,243.48,20.0]
[1732200096449,38.03882283,243.54,243.45,20.0]
[1732200096743,38.03882283,243.56,243.47,20.0]
[1732200096945,38.03882283,243.58,243.5,38.03882283]
[1732200097136,38.03882283,243.62,243.54,38.03882283]
[1732200097348,38.03882283,243.62,243.52,38.03882283]
[1732200097853,38.03882283,243.62,243.54,38.03882283]
[1732200098351,38.03882283,243.55,243.47,20.0]
[1732200098539,38.03882283,243.57,243.49,20.0]
[1732200099245,38.03882283,243.59,243.5,38.03882283]
[1732200099448,38.03882283,243.55,243.47,20.0]
[1732200099658,38.03882283,243.53,243.47,20.0]
[1732200100255,4.1047,243.62,243.49,38.03882283]
[1732200100434,38.03882283,243.63,243.55,20.0]
[1732200100635,38.03882283,243.67,243.58,38.03882283]
[1732200100852,38.03882283,243.67,243.59,20.0]
[1732200101440,58.28602283,243.69,243.6,38.03882283]
[1732200101746,38.03882283,243.73,243.64,38.03882283]
[1732200102144,38.03882283,243.73,243.65,20.0]
[1732200103344,38.03882283,243.75,243.67,20.0]
[1732200103537,38.03882283,243.72,243.67,20.0]
[1732200103739,38.03882283,243.72,243.63,38.03882283]
[1732200103740,38.03882283,243.7,243.63,38.03882283]
[1732200103973,38.03882283,243.68,243.59,38.03882283]
[1732200104138,38.03882283,243.66,243.57,38.03882283]
[1732200104334,38.03882283,243.64,243.55,38.03882283]
[1732200104563,38.03882283,243.62,243.53,38.03882283]
[1732200104739,38.03882283,243.59,243.51,38.03882283]
[1732200105042,38.03882283,243.61,243.53,38.03882283]
[1732200105241,38.03882283,243.65,243.55,38.03882283]
[1732200105458,38.03882283,243.61,243.53,38.03882283]
[1732200105638,38.03882283,243.67,243.57,38.03882283]
[1732200105966,38.03882283,243.67,243.6,20.0]
[1732200106256,38.03882283,243.71,243.63,38.03882283]
[1732200106561,38.03882283,243.73,243.66,20.0]
[1732200106759,38.03882283,243.77,243.68,20.0]
[1732200106960,38.03882283,243.73,243.68,20.0]
[1732200107354,38.03882283,243.71,243.63,38.03882283]
[1732200107550,38.03882283,243.69,243.64,20.0]
[1732200107947,38.03882283,243.71,243.64,20.0]
[1732200108148,38.03882283,243.69,243.62,20.0]
[1732200108355,38.03882283,243.73,243.66,20.0]
[1732200108551,38.03882283,243.71,243.66,20.0]
[1732200108765,38.03882283,243.73,243.66,20.0]
[1732200109764,38.03882283,243.75,243.67,38.03882283]
[1732200109961,20.0749,243.8,243.66,20.0]
[1732200109962,38.03882283,243.77,243.69,38.03882283]
[1732200110268,38.03882283,243.77,243.7,20.0]
[1732200110783,38.03882283,243.75,243.67,20.0]
[1732200111066,38.03882283,243.71,243.65,20.0]
[1732200111570,38.03882283,243.8,243.7,20.0]
[1732200111765,38.03882283,243.82,243.73,38.03882283]
[1732200112062,38.03882283,243.82,243.74,20.0]
[1732200112441,32.6619,243.88,243.74,20.0]
[1732200112442,38.03882283,243.84,243.76,20.0]
[1732200112641,38.03882283,243.86,243.78,20.0]
[1732200113165,38.03882283,243.8,243.74,20.0]
[1732200113344,38.03882283,243.78,243.74,20.0]
[1732200113546,38.03882283,243.76,243.67,38.03882283]
[1732200113854,38.03882283,243.76,243.68,20.0]
[1732200114164,38.03882283,243.74,243.66,20.0]
[1732200114468,38.53882283,243.84,243.63,38.03882283]
[1732200114469,38.03882283,243.72,243.63,38.03882283]
[1732200114643,38.03882283,243.7,243.61,38.03882283]
[1732200114840,38.03882283,243.74,243.65,38.03882283]
[1732200115048,38.03882283,243.77,243.68,38.03882283]
[1732200115347,58.86282283,243.79,243.7,38.03882283]
[1732200115545,38.03882283,243.77,243.68,38.03882283]
[1732200115943,7.945,243.86,243.76,38.03882283]
[1732200116162,38.03882283,243.87,243.79,20.0]
[1732200116545,7.945,243.93,243.81,20.0]
[1732200116546,38.03882283,243.89,243.81,20.0]
[1732200116750,7.945,243.93,243.81,20.0]
[1732200116751,38.03882283,243.87,243.81,20.0]
[1732200117142,38.03882283,243.87,243.79,20.0]
[1732200117765,38.03882283,243.8,243.6,7.6739]
[1732200118074,0.5,243.86,243.72,38.03882283]
[1732200118263,38.03882283,243.8,243.72,38.03882283]
[1732200118563,38.03882283,243.84,243.74,38.03882283]
[1732200118771,38.03882283,243.84,243.76,38.03882283]
[1732200118972,38.03882283,243.86,243.78,38.03882283]
[1732200119471,38.03882283,243.84,243.76,38.03882283]
[1732200119761,38.03882283,243.84,243.75,20.0]
[1732200119943,38.03882283,243.84,243.77,20.0]
[1732200120450,38.03882283,243.86,243.79,20.0]
[1732200120854,38.03882283,243.9,243.81,20.0]
[1732200121053,7.945,243.93,243.81,20.0]
[1732200121054,38.03882283,243.88,243.81,20.0]
[1732200121246,38.03882283,243.86,243.76,38.03882283]
[1732200121449,38.03882283,243.86,243.78,38.03882283]
[1732200121750,38.03882283,243.9,243.83,20.0]
[1732200122156,7.945,243.93,243.76,38.03882283]
[1732200122157,38.03882283,243.84,243.76,38.03882283]
[1732200122363,38.03882283,243.8,243.72,38.03882283]
[1732200123270,4.0998,243.92,243.68,38.03882283]
[1732200123271,38.03882283,243.76,243.68,38.03882283]
[1732200123567,38.03882283,243.7,243.61,38.03882283]
[1732200123776,0.5,243.81,243.59,16.391971]
[1732200123777,38.03882283,243.67,243.59,38.03882283]
[1732200124275,38.03882283,243.61,243.48,38.03882283]
[1732200124583,38.03882283,243.61,243.39,20.6107]
[1732200124584,38.03882283,243.52,243.47,16.394642]
[1732200124866,38.03882283,243.61,243.39,38.03882283]
[1732200124867,38.03882283,243.48,243.39,38.03882283]
[1732200125045,38.03882283,243.46,243.37,38.03882283]
[1732200125363,38.03882283,243.4,243.31,38.03882283]
[1732200125668,38.03882283,243.4,243.22,0.5]
[1732200125669,38.03882283,243.38,243.29,38.03882283]
[1732200125855,38.03882283,243.34,243.25,38.03882283]
[1732200126570,38.03882283,243.3,243.21,38.03882283]
[1732200126760,38.03882283,243.34,243.27,38.03882283]
[1732200126966,38.03882283,243.34,243.15,0.5]
[1732200127146,38.03882283,243.36,243.27,38.03882283]
[1732200127351,38.03882283,243.38,243.31,38.03882283]
[1732200127751,23.776884,243.47,243.24,38.03882283]
[1732200127752,38.03882283,243.42,243.33,38.03882283]
[1732200127967,38.03882283,243.46,243.37,38.03882283]
[1732200128169,38.03882283,243.52,243.45,38.03882283]
[1732200128472,38.03882283,243.52,243.44,20.0]
[1732200128678,0.5,243.57,243.27,23.776884]
[1732200128850,28.4768,243.58,243.27,23.776884]
[1732200128851,38.03882283,243.47,243.38,38.03882283]
[1732200129051,38.03882283,243.49,243.41,20.0]
[1732200129673,38.03882283,243.51,243.44,38.03882283]
[1732200129871,38.03882283,243.55,243.48,38.03882283]
[1732200130054,38.03882283,243.57,243.51,20.0]
[1732200130260,38.03882283,243.59,243.51,20.0]
[1732200130572,38.03882283,243.53,243.44,38.03882283]
[1732200130754,38.03882283,243.5,243.42,38.03882283]
[1732200131076,0.5,243.62,243.47,20.0]
[1732200131688,38.03882283,243.49,243.42,20.0]
[1732200131973,38.03882283,243.47,243.42,20.0]
[1732200132277,4.105,243.6,243.44,20.0]
[1732200132278,38.03882283,243.51,243.44,20.0]
[1732200132652,38.03882283,243.49,243.44,20.0]
[1732200132854,38.03882283,243.47,243.4,20.0]
[1732200133157,38.03882283,243.47,243.42,20.0]
[1732200133361,38.03882283,243.43,243.32,38.03882283]
[1732200133672,38.03882283,243.38,243.3,38.03882283]
[1732200134678,38.03882283,243.4,243.32,38.03882283]
[1732200135182,38.03882283,243.36,243.28,38.03882283]
[1732200135475,38.03882283,243.32,243.22,38.03882283]
[1732200135683,38.03882283,243.3,243.2,38.03882283]
[1732200135978,38.03882283,243.32,243.24,38.03882283]
[1732200136269,4.1084,243.41,243.2,38.03882283]
[1732200136270,38.03882283,243.3,243.2,38.03882283]
[1732200136569,38.03882283,243.26,243.18,38.03882283]
[1732200136756,38.03882283,243.28,243.18,38.03882283]
[1732200136963,38.03882283,243.28,243.2,38.03882283]
[1732200137163,38.03882283,243.3,243.2,38.03882283]
[1732200137370,38.03882283,243.28,243.18,38.03882283]
[1732200137554,38.03882283,243.26,243.16,38.03882283]
[1732200137973,38.03882283,243.26,243.18,38.03882283]
[1732200138275,10.2693,243.45,243.12,38.03882283]
[1732200138276,38.03882283,243.32,243.25,20.0]
[1732200138473,38.03882283,243.33,243.25,58.03882283]
[1732200138976,9.0224,243.46,243.12,38.53882283]
[1732200138977,38.03882283,243.39,243.3,20.0]
[1732200139356,38.03882283,243.39,243.31,38.03882283]
[1732200139554,38.03882283,243.39,243.32,20.0]
[1732200140073,38.03882283,243.41,243.33,38.03882283]
[1732200140256,38.03882283,243.39,243.34,20.0]
[1732200140878,0.5,243.52,243.24,38.03882283]
[1732200140879,38.03882283,243.49,243.38,20.0]
[1732200141049,38.03882283,243.49,243.42,38.03882283]
[1732200141257,38.03882283,243.49,243.36,38.03882283]
[1732200141258,38.03882283,243.49,243.43,20.0]
[1732200141761,38.03882283,243.49,243.41,20.0]
[1732200142272,38.03882283,243.49,243.32,0.5]
[1732200142273,38.03882283,243.53,243.45,20.0]
[1732200142456,38.03882283,243.5,243.45,20.0]
[1732200142665,38.03882283,243.48,243.4,38.03882283]
[1732200142983,12.3333,243.57,243.36,38.03882283]
[1732200142984,38.03882283,243.44,243.36,38.03882283]
[1732200143160,38.03882283,243.46,243.38,38.03882283]
[1732200143472,38.03882283,243.48,243.4,38.03882283]
[1732200143681,38.03882283,243.52,243.43,38.03882283]
[1732200143864,38.03882283,243.5,243.43,38.03882283]
[1732200144173,38.03882283,243.44,243.38,20.0]
[1732200144377,38.03882283,243.46,243.38,20.0]
[1732200144873,38.03882283,243.46,243.39,38.03882283]
[1732200145055,38.03882283,243.46,243.4,20.0]
[1732200145260,38.03882283,243.5,243.41,38.03882283]
[1732200145580,38.03882283,243.52,243.44,20.0]
[1732200145778,38.03882283,243.5,243.44,20.0]
[1732200146075,38.03882283,243.5,243.3,0.5]
[1732200146076,38.03882283,243.46,243.4,20.0]
[1732200146773,38.03882283,243.46,243.37,38.03882283]
[1732200147166,38.03882283,243.44,243.35,38.03882283]
[1732200147555,38.03882283,243.4,243.31,38.03882283]
[1732200147756,38.03882283,243.38,243.31,38.03882283]
[1732200148179,38.03882283,243.36,243.18,0.5]
[1732200148371,38.03882283,243.32,243.24,38.03882283]
[1732200148879,38.03882283,243.28,243.19,38.03882283]
[1732200149173,38.03882283,243.3,243.21,38.03882283]
[1732200149377,38.03882283,243.28,243.21,38.03882283]
[1732200149978,38.03882283,243.34,243.25,38.03882283]
[1732200150682,38.03882283,243.4,243.33,38.03882283]
[1732200150863,38.03882283,243.4,243.34,20.0]
[1732200151274,38.03882283,243.41,243.34,20.0]
[1732200151583,38.03882283,243.42,243.34,58.03882283]
[1732200152177,8.0596,243.48,243.27,0.5]
[1732200152485,38.03882283,243.35,243.26,38.03882283]
[1732200152677,38.03882283,243.37,243.28,38.03882283]
[1732200152867,24.276884,243.4,243.16,7.806]
[1732200153066,23.776884,243.36,243.07,7.806]
[1732200153285,23.776884,243.36,243.14,38.03882283]
[1732200153286,0.5,243.34,243.14,38.03882283]
[1732200153464,38.03882283,243.25,243.16,38.03882283]
[1732200153888,24.276884,243.34,243.12,38.03882283]
[1732200153889,38.03882283,243.21,243.12,38.03882283]
[1732200154187,38.03882283,243.19,243.1,38.03882283]
[1732200155267,38.03882283,243.21,243.12,38.03882283]
[1732200155465,38.03882283,243.19,243.13,20.0]
[1732200155765,38.03882283,243.19,243.1,38.03882283]
[1732200155961,38.03882283,243.21,243.13,38.03882283]
[1732200156184,38.03882283,243.21,243.14,20.0]
[1732200156731,38.03882283,243.25,243.17,38.03882283]
[1732200156984,38.03882283,243.27,243.2,20.0]
[1732200157187,38.03882283,243.31,243.22,20.0]
[1732200157486,38.03882283,243.29,243.22,20.0]
[1732200157879,38.03882283,243.24,243.16,38.03882283]
[1732200158076,38.03882283,243.24,243.07,38.03882283]
[1732200158077,38.03882283,243.18,243.07,38.03882283]
[1732200158269,38.03882283,243.15,243.07,38.03882283]
[1732200158591,38.03882283,243.15,243.05,38.03882283]
[1732200158767,38.03882283,243.15,243.07,38.03882283]
[1732200159087,38.03882283,243.13,243.07,38.03882283]
[1732200159273,38.03882283,243.15,243.07,38.03882283]
[1732200159475,38.03882283,243.21,243.13,38.03882283]
[1732200159786,38.03882283,243.23,243.14,20.0]
[1732200160182,38.03882283,243.19,243.11,38.03882283]
[1732200160373,38.03882283,243.19,243.12,20.0]
[1732200161278,38.03882283,243.21,243.12,20.0]
[1732200161788,38.03882283,243.23,243.15,38.03882283]
[1732200161989,38.03882283,243.23,243.16,20.0]
[1732200163881,38.03882283,243.3,243.22,38.03882283]
[1732200164284,38.03882283,243.34,243.26,38.03882283]
[1732200164601,38.03882283,243.42,243.32,38.03882283]
[1732200164780,7.6354,243.46,243.35,20.0]
[1732200164781,38.03882283,243.44,243.35,20.0]
[1732200165102,38.03882283,243.44,243.36,38.03882283]
[1732200165391,38.03882283,243.46,243.38,38.03882283]
[1732200165597,38.03882283,243.54,243.45,20.0]
[1732200165770,38.03882283,243.56,243.48,38.03882283]
[1732200165977,38.03882283,243.56,243.45,20.0]
[1732200165978,38.03882283,243.58,243.5,38.03882283]
[1732200166302,19.9034,243.6,243.46,38.03882283]
[1732200166303,38.03882283,243.54,243.46,38.03882283]
[1732200166500,38.03882283,243.54,243.47,20.0]
[1732200166670,38.03882283,243.56,243.48,38.03882283]
[1732200166873,38.03882283,243.56,243.3,70.0]
[1732200166874,38.03882283,243.5,243.42,38.03882283]
[1732200167075,38.03882283,243.48,243.43,20.0]
[1732200167594,38.03882283,243.48,243.4,38.03882283]
[1732200167776,38.03882283,243.48,243.41,20.0]
[1732200168103,38.03882283,243.46,243.39,20.0]
[1732200168685,38.03882283,243.46,243.37,20.0]
[1732200169080,38.03882283,243.46,243.38,38.03882283]
[1732200169281,38.03882283,243.48,243.41,20.0]
[1732200169585,38.03882283,243.52,243.44,38.03882283]
[1732200169792,38.03882283,243.52,243.45,20.0]
[1732200170007,38.03882283,243.54,243.47,20.0]
[1732200170301,38.03882283,243.54,243.36,38.03882283]
[1732200170302,38.03882283,243.56,243.49,20.0]
[1732200171305,38.03882283,243.56,243.48,38.03882283]
[1732200171490,38.03882283,243.51,243.45,20.0]
[1732200171686,38.03882283,243.49,243.4,38.03882283]
[1732200171882,38.03882283,243.47,243.38,38.03882283]
[1732200172077,4.1066,243.51,243.46,1.31445367]
[1732200172274,38.03882283,243.47,243.46,1.31445367]
[1732200173004,38.03882283,243.51,243.46,1.31445367]
[1732200173204,19.9034,243.6,243.46,39.3532765]
[1732200173500,38.03882283,243.57,243.49,20.0]
[1732200173878,38.03882283,243.59,243.52,38.03882283]
[1732200174081,38.03882283,243.59,243.51,20.0]
[1732200174687,38.03882283,243.61,243.53,20.0]
[1732200174884,38.03882283,243.63,243.54,38.03882283]
[1732200175101,38.03882283,243.61,243.55,20.0]
[1732200175496,38.03882283,243.61,243.53,20.0]
[1732200176016,38.03882283,243.63,243.54,38.03882283]
[1732200176319,38.03882283,243.63,243.57,20.0]
[1732200177015,38.03882283,243.63,243.55,20.0]
[1732200177392,38.03882283,243.61,243.52,38.03882283]
[1732200177591,38.03882283,243.59,243.51,20.0]
[1732200177803,38.03882283,243.61,243.53,20.0]
[1732200177995,38.03882283,243.63,243.54,38.03882283]
[1732200178203,38.03882283,243.63,243.55,20.0]
[1732200178693,38.03882283,243.63,243.54,38.03882283]
[1732200178898,38.03882283,243.63,243.55,20.0]
[1732200179517,38.03882283,243.61,243.54,38.03882283]
[1732200179813,38.03882283,243.61,243.52,38.03882283]
[1732200180014,38.03882283,243.59,243.51,20.0]
[1732200180193,38.03882283,243.63,243.54,38.03882283]
[1732200180798,38.03882283,243.63,243.55,20.0]
[1732200180995,38.03882283,243.59,243.51,20.0]
[1732200181424,20.9068,243.71,243.46,1.31445367]
[1732200181425,38.03882283,243.53,243.46,1.31445367]
[1732200181742,38.03882283,243.61,243.52,38.03882283]
[1732200182492,38.03882283,243.63,243.54,38.03882283]
[1732200182696,38.03882283,243.61,243.52,38.03882283]
[1732200182925,38.03882283,243.61,243.53,20.0]
[1732200183635,38.03882283,243.57,243.48,38.03882283]
[1732200183920,38.03882283,243.51,243.46,1.31445367]
[1732200184126,1.0,243.59,243.46,1.31445367]
[1732200184127,38.03882283,243.49,243.46,1.31445367]
[1732200184303,38.03882283,243.53,243.46,1.31445367]
[1732200184501,38.03882283,243.55,243.47,38.03882283]
[1732200185098,38.03882283,243.57,243.49,38.03882283]
[1732200185304,10.2593,243.68,243.55,38.03882283]
[1732200185305,38.03882283,243.64,243.55,38.03882283]
[1732200185821,38.03882283,243.62,243.55,38.03882283]
[1732200186019,38.03882283,243.62,243.54,20.0]
[1732200186205,38.03882283,243.64,243.57,38.03882283]
[1732200186406,38.03882283,243.64,243.55,38.03882283]
[1732200186609,38.03882283,243.64,243.57,38.03882283]
[1732200186908,38.03882283,243.68,243.6,20.0]
[1732200187110,11.7396,243.74,243.63,38.03882283]
[1732200187111,38.03882283,243.72,243.63,38.03882283]
[1732200187303,38.03882283,243.72,243.64,20.0]
[1732200187504,38.03882283,243.7,243.61,38.03882283]
[1732200187816,38.03882283,243.64,243.57,38.03882283]
[1732200188122,38.03882283,243.66,243.58,20.0]
[1732200188511,38.03882283,243.7,243.61,38.03882283]
[1732200188703,38.03882283,243.72,243.63,38.03882283]
[1732200188929,18.8385,243.8,243.66,20.0]
[1732200188930,38.03882283,243.74,243.66,20.0]
[1732200189224,18.8385,243.8,243.66,20.0]
[1732200189225,38.03882283,243.72,243.66,20.0]
[1732200190228,38.03882283,243.74,243.66,20.0]
[1732200190527,38.03882283,243.74,243.68,20.0]
[1732200190901,38.03882283,243.72,243.65,38.03882283]
[1732200191104,38.03882283,243.72,243.66,20.0]
[1732200192322,38.03882283,243.72,243.65,38.03882283]
[1732200192624,38.03882283,243.72,243.46,1.31445367]
[1732200192625,38.03882283,243.66,243.59,38.03882283]
[1732200192822,38.03882283,243.66,243.57,38.03882283]
[1732200193023,38.03882283,243.66,243.58,38.03882283]
[1732200193203,38.03882283,243.66,243.48,38.53882283]
[1732200193204,38.03882283,243.62,243.54,38.03882283]
[1732200193406,38.03882283,243.72,243.46,1.31445367]
[1732200193407,38.03882283,243.6,243.52,38.03882283]
[1732200193709,38.03882283,243.62,243.54,38.03882283]
[1732200193933,38.03882283,243.62,243.56,38.03882283]
[1732200194139,38.03882283,243.66,243.58,38.03882283]
[1732200194319,38.03882283,243.71,243.63,38.03882283]
[1732200195212,38.03882283,243.69,243.62,20.0]
[1732200195610,38.03882283,243.71,243.64,20.0]
[1732200195931,38.03882283,243.66,243.54,38.03882283]
[1732200196129,38.03882283,243.62,243.54,38.03882283]
[1732200196322,38.03882283,243.64,243.56,38.03882283]
[1732200196528,38.03882283,243.62,243.54,38.03882283]
[1732200197230,38.03882283,243.68,243.6,38.03882283]
[1732200197608,38.03882283,243.7,243.63,20.0]
[1732200198330,38.03882283,243.72,243.62,38.03882283]
[1732200198527,38.03882283,243.72,243.52,0.5]
[1732200198528,38.03882283,243.72,243.65,20.0]
[1732200198725,38.03882283,243.74,243.66,38.03882283]
[1732200198924,38.03882283,243.74,243.67,20.0]
[1732200199122,38.03882283,243.79,243.71,38.03882283]
[1732200199729,38.03882283,243.81,243.74,20.0]
[1732200199924,20.1,243.89,243.77,38.03882283]
[1732200200124,38.03882283,243.85,243.78,20.0]
[1732200200325,38.03882283,243.83,243.75,38.03882283]
[1732200200527,38.03882283,243.83,243.76,20.0]
[1732200201238,38.03882283,243.79,243.7,20.0]
[1732200201412,38.03882283,243.77,243.7,20.0]
[1732200201733,38.03882283,243.75,243.7,20.0]
[1732200201947,38.03882283,243.75,243.68,20.0]
[1732200202114,38.03882283,243.75,243.66,20.0]
[1732200202433,38.03882283,243.75,243.68,20.0]
[1732200202814,38.03882283,243.81,243.72,20.0]
[1732200203033,38.03882283,243.81,243.74,20.0]
[1732200203236,38.03882283,243.83,243.76,20.0]
[1732200203443,38.03882283,243.85,243.77,38.03882283]
[1732200203733,38.03882283,243.85,243.78,20.0]
[1732200203937,0.5,243.97,243.78,20.0]
[1732200203938,4.0996,243.93,243.78,20.0]
[1732200204140,4.0996,243.93,243.72,38.03882283]
[1732200204343,38.03882283,243.87,243.79,38.03882283]
[1732200204515,38.03882283,243.87,243.72,38.03882283]
[1732200204516,38.03882283,243.89,243.81,38.03882283]
[1732200204844,38.03882283,243.89,243.82,20.0]
[1732200205133,32.5265,243.97,243.82,43.21518414]
[1732200205134,23.21518414,243.9,243.82,43.21518414]
[1732200205740,23.21518414,243.92,243.85,20.0]
[1732200206535,23.21518414,243.94,243.87,20.0]
[1732200206928,23.21518414,243.96,243.87,20.0]
[1732200207133,23.21518414,243.92,243.85,20.0]
[1732200207430,23.21518414,243.9,243.85,20.0]
[1732200207632,23.21518414,243.9,243.83,20.0]
[1732200207841,23.21518414,243.86,243.76,23.21518414]
[1732200208132,23.21518414,243.84,243.76,23.21518414]
[1732200209123,23.21518414,243.86,243.78,23.21518414]
[1732200209539,23.21518414,243.86,243.79,20.0]
[1732200209932,23.21518414,243.81,243.59,19.9508]
[1732200210240,23.21518414,243.76,243.68,23.21518414]
[1732200210618,23.21518414,243.76,243.66,23.21518414]
[1732200210819,23.21518414,243.72,243.64,23.21518414]
[1732200211135,23.21518414,243.74,243.66,23.21518414]
[1732200211436,23.21518414,243.7,243.62,23.21518414]
[1732200211618,23.21518414,243.68,243.6,23.21518414]
[1732200211817,23.21518414,243.7,243.55,0.5]
[1732200212041,23.21518414,243.7,243.62,23.21518414]
[1732200212914,23.21518414,243.68,243.6,23.21518414]
[1732200213137,23.21518414,243.62,243.52,23.21518414]
[1732200213339,23.21518414,243.6,243.52,23.21518414]
[1732200213552,23.21518414,243.62,243.54,23.21518414]
[1732200213744,23.21518414,243.64,243.56,23.21518414]
[1732200214060,27.31828414,243.72,243.48,23.71518414]
[1732200214061,23.21518414,243.68,243.6,23.21518414]
[1732200214237,23.21518414,243.7,243.62,23.21518414]
[1732200214443,23.21518414,243.7,243.63,20.0]
[1732200214642,23.21518414,243.7,243.61,20.0]
[1732200214863,23.21518414,243.68,243.61,20.0]
[1732200215039,23.21518414,243.64,243.57,20.0]
[1732200215346,23.776884,243.79,243.5,4.77253768]
[1732200215347,23.21518414,243.66,243.59,20.0]
[1732200216247,23.21518414,243.68,243.59,20.0]
[1732200216781,23.21518414,243.66,243.59,20.0]
[1732200216952,23.21518414,243.68,243.6,23.21518414]
[1732200217255,23.21518414,243.7,243.63,20.0]
[1732200218058,23.21518414,243.72,243.64,23.21518414]
[1732200218357,23.21518414,243.76,243.68,23.21518414]
[1732200218559,23.21518414,243.76,243.69,20.0]
[1732200219945,23.21518414,243.78,243.7,23.21518414]
[1732200220143,23.21518414,243.8,243.72,23.21518414]
[1732200220669,23.21518414,243.78,243.73,20.0]
[1732200220837,204.74429336,244.08,243.73,20.0]
[1732200220838,23.21518414,243.79,243.73,20.0]
[1732200221859,23.21518414,243.83,243.76,23.21518414]
[1732200222037,23.21518414,243.87,243.8,23.21518414]
[1732200222237,23.21518414,243.88,243.81,20.0]
[1732200223542,23.21518414,243.92,243.84,23.21518414]
[1732200223747,23.21518414,243.94,243.87,20.0]
[1732200224070,23.21518414,243.94,243.87,43.21518414]
[1732200224563,23.21518414,243.94,243.86,20.0]
[1732200225264,23.21518414,243.99,243.9,20.0]
[1732200225763,23.21518414,243.99,243.91,23.21518414]
[1732200225952,23.21518414,243.99,243.92,20.0]
[1732200227147,23.21518414,243.99,243.91,46.99206814]
[1732200227454,23.21518414,243.99,243.93,23.776884]
[1732200227642,23.21518414,244.01,243.96,20.0]
[1732200227958,23.21518414,243.97,243.89,20.0]
[1732200228265,23.21518414,243.97,243.91,20.0]
[1732200228464,23.21518414,243.97,243.92,23.776884]
[1732200228765,23.21518414,244.02,243.97,20.0]
[1732200228944,23.21518414,244.02,243.94,23.21518414]
[1732200228945,23.21518414,244.05,244.01,20.0]
[1732200229267,23.21518414,244.05,243.99,20.0]
[1732200229641,23.21518414,244.07,243.99,20.0]
[1732200229840,23.21518414,244.03,243.97,20.0]
[1732200230059,23.21518414,244.01,243.97,20.0]
[1732200230260,23.21518414,243.99,243.97,20.0]
[1732200230466,23.21518414,243.99,243.91,23.776884]
[1732200230649,0.5,244.16,243.93,23.776884]
[1732200230968,23.21518414,244.01,243.95,23.776884]
[1732200231345,23.21518414,244.03,243.95,23.776884]
[1732200231563,23.21518414,244.03,243.97,23.776884]
[1732200231816,23.21518414,244.03,243.98,20.0]
[1732200232143,23.21518414,244.07,243.99,23.776884]
[1732200232350,23.21518414,244.09,244.02,20.0]
[1732200232541,23.21518414,244.07,244.02,20.0]
[1732200232971,23.21518414,244.07,243.98,23.21518414]
[1732200232972,23.21518414,244.03,243.97,20.0]
[1732200233176,23.21518414,244.03,243.95,20.0]
[1732200233351,23.21518414,243.98,243.9,23.21518414]
[1732200233667,23.21518414,243.96,243.88,23.21518414]
[1732200234165,23.21518414,243.96,243.86,31.41478414]
[1732200234351,23.21518414,243.96,243.88,23.21518414]
[1732200235168,23.21518414,243.98,243.88,23.21518414]